bitfinex-derivatives/quotes_BTCF0:USTF0_20251210
["timestamp","ask_amount","ask_price","bid_price","bid_amount"]
[1765403531195,0.54504,92730.0,92729.0,0.54617182]
[1765403531395,0.54504,92730.0,92729.0,0.91775282]
[1765403531689,0.00107829,92740.0,92739.0,0.54601]
[1765403531890,0.00107829,92740.0,92739.0,0.90681]
[1765403533589,0.00207829,92740.0,92739.0,0.90681]
[1765403533995,0.01285809,92740.0,92739.0,0.90681]
[1765403534880,0.00207829,92740.0,92739.0,0.90681]
[1765403535789,0.0118549,92765.0,92744.0,0.15332]
[1765403535996,0.0107788,92749.0,92748.0,0.54601]
[1765403536189,0.0107788,92749.0,92748.0,0.90681]
[1765403536500,0.0107779,92757.0,92756.0,0.52592]
[1765403537882,0.0107774,92761.0,92760.0,0.1592]
[1765403538187,0.001078,92765.0,92764.0,0.52592]
[1765403538385,0.001078,92765.0,92764.0,0.88672]
[1765403539095,0.9071342,92788.0,92787.0,0.52592]
[1765403539304,0.07757258,92808.0,92807.0,0.52592]
[1765403539487,0.07865,92815.0,92812.0,0.52592]
[1765403539682,0.00107742,92815.0,92814.0,0.88672]
[1765403540396,0.07757258,92829.0,92827.0,0.5366897]
[1765403540596,0.07757258,92830.0,92829.0,0.5366894]
[1765403540895,0.3608,92831.0,92830.0,0.68512]
[1765403541099,0.08834118,92837.0,92832.0,0.52592]
[1765403541287,0.26703,92837.0,92836.0,0.52592]
[1765403541599,0.53556,92837.0,92836.0,0.52592]
[1765403542599,0.00107713,92840.0,92839.0,0.52592]
[1765403542900,0.54740523,92840.0,92839.0,0.26432]
[1765403543194,0.27887523,92840.0,92839.0,0.52592]
[1765403543497,0.00107713,92840.0,92839.0,0.52592]
[1765403544695,0.53663713,92840.0,92839.0,0.52592]
[1765403545000,0.54063713,92840.0,92839.0,0.52592]
[1765403545387,0.54063713,92840.0,92814.0,0.3608]
[1765403545388,0.0107705,92820.0,92814.0,0.3608]
[1765403545590,0.5463305,92820.0,92808.0,0.1592]
[1765403545900,0.9071305,92820.0,92808.0,0.1592]
[1765403546490,0.9091305,92820.0,92808.0,0.1592]
[1765403548090,0.9091305,92820.0,92819.0,0.26448162]
[1765403548490,0.99431941,92820.0,92819.0,0.53269162]
[1765403549484,0.9091305,92820.0,92819.0,0.53269162]
[1765403549690,0.89836,92820.0,92819.0,0.53269162]
[1765403549891,0.3628,92820.0,92819.0,0.53269162]
[1765403553093,0.9310005,92820.0,92819.0,0.00016162]
[1765403555695,0.9310005,92820.0,92808.0,0.70954]
[1765403555696,0.5682017,92809.0,92808.0,0.70954]
[1765403555999,0.9290017,92809.0,92808.0,0.70954]
[1765403557008,0.3608,92809.0,92808.0,0.70954]
[1765403557997,0.3608,92809.0,92808.0,0.71054]
[1765403558204,0.91823,92809.0,92808.0,0.72808]
[1765403564307,0.3608,92809.0,92808.0,0.7388519]
[1765403564705,0.00016066,92818.0,92817.0,0.7378508]
[1765403565606,1.22060848,92830.0,92829.0,0.55034]
[1765403565908,1.0463593,92830.0,92829.0,0.55034]
[1765403566108,0.5681993,92830.0,92829.0,0.55034]
[1765403566608,0.55743,92830.0,92829.0,0.5611094]
[1765403566808,0.73167918,92839.0,92838.0,0.55034]
[1765403567004,0.00107713,92840.0,92839.0,0.5611083]
[1765403568611,0.00107713,92840.0,92839.0,0.5621083]
[1765403569309,0.00107713,92840.0,92839.0,0.55334]
[1765403569820,0.00107713,92840.0,92839.0,0.55234]
[1765403570118,0.55850713,92840.0,92839.0,0.55434]
[1765403570701,0.00107713,92840.0,92839.0,0.55434]
[1765403571820,0.00107713,92840.0,92839.0,0.55234]
[1765403572009,0.00107713,92840.0,92839.0,0.55434]
[1765403572721,0.01184523,92840.0,92839.0,0.55434]
[1765403572908,0.00107713,92840.0,92839.0,0.55434]
[1765403578421,0.56130713,92840.0,92839.0,0.55434]
[1765403578623,0.72745713,92840.0,92839.0,0.004]
[1765403579012,0.5709999,92825.0,92824.0,0.3608]
[1765403579324,0.5710003,92821.0,92820.0,0.54831162]
[1765403580530,0.5710003,92821.0,92820.0,0.55231162]
[1765403580834,0.5710003,92821.0,92820.0,0.00416162]
[1765403580835,0.9318003,92821.0,92820.0,0.00416162]
[1765403581710,0.9318003,92821.0,92792.0,0.5329]
[1765403581711,0.010772,92807.0,92793.0,0.0107735]
[1765403581916,0.571002,92807.0,92806.0,0.63431]
[1765403582819,0.571002,92807.0,92806.0,0.3608]
[1765403583417,0.571002,92807.0,92806.0,0.63431]
[1765403584122,0.571002,92807.0,92806.0,0.63731]
[1765403584717,0.571002,92807.0,92806.0,0.63931]
[1765403584910,0.571002,92807.0,92806.0,0.3658]
[1765403585317,1.472762,92807.0,92806.0,0.005]
[1765403585517,0.571003,92798.0,92797.0,0.00016162]
[1765403585811,0.931803,92798.0,92797.0,0.00016162]
[1765403586419,0.5710038,92791.0,92790.0,0.00107771]
[1765403586818,0.734626,92772.0,92762.0,0.02898402]
[1765403587028,0.5710067,92766.0,92758.0,0.02898402]
[1765403587224,0.5710067,92766.0,92755.0,0.02898402]
[1765403587523,0.5710067,92766.0,92756.0,0.00016162]
[1765403588127,0.5710078,92757.0,92756.0,2e-08]
[1765403588328,1.4340078,92757.0,92756.0,2e-08]
[1765403588817,1.4340078,92757.0,92736.0,0.1721]
[1765403589130,0.9318096,92741.0,92740.0,0.54922829]
[1765403591120,0.3608,92741.0,92740.0,0.54922829]
[1765403591423,0.50232,92745.0,92744.0,0.61094]
[1765403591616,0.81058,92745.0,92744.0,0.61094]
[1765403591816,1.12972,92745.0,92744.0,0.61094]
[1765403593625,1.12972,92745.0,92744.0,0.61194]
[1765403594014,1.49052,92745.0,92744.0,0.001]
[1765403594216,0.6381807,92732.0,92703.0,0.3608]
[1765403594523,1.8621007,92732.0,92704.0,0.0107839]
[1765403594720,1.8621007,92732.0,92702.0,0.50232]
[1765403594926,0.6381825,92716.0,92715.0,0.61201858]
[1765403595121,0.9989825,92716.0,92715.0,0.61201858]
[1765403595918,0.99908224,92716.0,92715.0,0.61201858]
[1765403596327,0.99908224,92716.0,92715.0,0.29180858]
[1765403596526,0.99908224,92716.0,92715.0,0.00107858]
[1765403597028,1.00008224,92716.0,92715.0,0.00107858]
[1765403597535,1.36088224,92716.0,92715.0,0.00107858]
[1765403597731,0.6381836,92707.0,92706.0,0.00016171]
[1765403597927,0.99906372,92707.0,92706.0,0.00016171]
[1765403598230,0.99906372,92707.0,92706.0,0.29089171]
[1765403598623,0.99906372,92707.0,92706.0,0.00016171]
[1765403598824,0.3190453,92692.0,92691.0,0.61094]
[1765403599023,0.67992605,92692.0,92691.0,0.61094]
[1765403599319,0.99906605,92692.0,92691.0,0.61094]
[1765403599627,0.98828075,92692.0,92691.0,0.61094]
[1765403600242,0.98828075,92692.0,92691.0,0.61294]
[1765403600628,0.98828075,92692.0,92691.0,0.61694]
[1765403602133,0.30834075,92692.0,92691.0,0.61694]
[1765403602434,0.62748075,92692.0,92691.0,0.61694]
[1765403603432,8.075e-05,92692.0,92691.0,0.61694]
[1765403612346,0.00016181,92701.0,92700.0,0.6032044]
[1765403612536,0.01094621,92701.0,92700.0,0.6032044]
[1765403612737,0.30549621,92701.0,92700.0,0.59242]
[1765403613631,0.01094621,92701.0,92700.0,0.59242]
[1765403613835,0.01094621,92701.0,92700.0,0.59342]
[1765403614845,0.01094621,92701.0,92700.0,0.59542]
[1765403615540,0.61269621,92701.0,92700.0,0.59542]
[1765403616250,0.61269621,92701.0,92700.0,0.62560389]
[1765403617735,0.00016181,92701.0,92700.0,0.62560389]
[1765403618845,0.0107831,92712.0,92711.0,0.6032031]
[1765403619041,0.0538932,92750.0,92711.0,0.6032031]
[1765403619042,0.61270604,92739.0,92738.0,0.59242]
[1765403619350,0.97350604,92739.0,92738.0,0.59242]
[1765403619645,0.61270604,92739.0,92738.0,0.59242]
[1765403619847,0.60175,92739.0,92738.0,0.59242]
[1765403620045,0.612531,92730.0,92729.0,0.00016181]
[1765403620232,0.973331,92730.0,92729.0,0.00016181]
[1765403620439,0.973331,92730.0,92729.0,0.60944039]
[1765403620748,0.973331,92730.0,92729.0,0.64124096]
[1765403620749,0.96255,92730.0,92729.0,0.64124096]
[1765403621049,0.96255,92730.0,92729.0,0.04882096]
[1765403621741,0.96455,92730.0,92729.0,0.04882096]
[1765403622246,1.32735,92730.0,92729.0,0.04870748]
[1765403622442,1.32635,92730.0,92729.0,0.04870748]
[1765403622632,1.32435,92730.0,92729.0,0.00016181]
[1765403622836,1.32635,92730.0,92729.0,0.00016181]
[1765403623237,1.32635,92730.0,92729.0,0.03186725]
[1765403623641,0.6125329,92722.0,92721.0,0.02898402]
[1765403623844,1.4760929,92722.0,92721.0,0.03170634]
[1765403624039,0.6125341,92712.0,92710.0,0.03863902]
[1765403624234,0.6125341,92712.0,92706.0,0.05803158]
[1765403624235,0.60175,92707.0,92706.0,0.05803158]
[1765403624438,0.60175,92707.0,92706.0,0.65045158]
[1765403624439,0.9733347,92707.0,92706.0,0.65045158]
[1765403624637,0.9733347,92707.0,92706.0,0.64959475]
[1765403624841,0.9733347,92707.0,92706.0,0.59242]
[1765403625037,0.96255,92707.0,92706.0,0.59242]
[1765403625234,0.3608,92707.0,92706.0,0.59242]
[1765403625649,0.3608,92707.0,92706.0,0.59642]
[1765403625845,0.3608,92707.0,92706.0,0.6072048]
[1765403627051,0.3608,92707.0,92706.0,0.04214886]
[1765403627052,0.96255,92707.0,92706.0,0.04214886]
[1765403627348,0.96255,92707.0,92697.0,0.00016181]
[1765403627349,0.60175,92698.0,92697.0,0.00016181]
[1765403627546,1.46543,92698.0,92697.0,0.00016181]
[1765403627942,0.77501,92691.0,92684.0,0.05718414]
[1765403628141,1.1465965,92691.0,92684.0,0.05718414]
[1765403628736,1.1465965,92691.0,92674.0,0.0107884]
[1765403628737,1.1465965,92691.0,92683.0,0.05718414]
[1765403629135,0.9733365,92691.0,92690.0,0.59349887]
[1765403629534,0.65535,92691.0,92690.0,0.59349887]
[1765403630148,0.65535,92691.0,92690.0,0.59449887]
[1765403630558,0.96255,92691.0,92690.0,0.59449887]
[1765403631240,0.96255,92691.0,92690.0,0.30102887]
[1765403631554,1.13702,92691.0,92690.0,0.00207887]
[1765403633845,1.13702,92691.0,92690.0,0.01894372]
[1765403635640,0.612537,92687.0,92686.0,0.35613414]
[1765403635950,0.973337,92687.0,92686.0,0.38760655]
[1765403636151,0.973337,92687.0,92686.0,0.62389241]
[1765403636839,0.973337,92687.0,92686.0,0.62489241]
[1765403640557,0.973337,92687.0,92686.0,0.03247241]
[1765403640754,0.973337,92687.0,92686.0,0.001]
[1765403641053,0.53527,92691.0,92690.0,0.60276]
[1765403641054,0.35568285,92691.0,92690.0,0.60276]
[1765403641259,0.32526454,92691.0,92690.0,0.64591185]
[1765403641459,0.92777454,92691.0,92690.0,0.63512515]
[1765403641645,0.92777454,92691.0,92690.0,0.60276]
[1765403641850,0.613297,92687.0,92686.0,0.001]
[1765403642262,0.613297,92687.0,92686.0,0.60376]
[1765403642456,0.013787,92687.0,92686.0,0.60276]
[1765403642764,0.319187,92687.0,92686.0,0.60276]
[1765403642966,0.323187,92687.0,92686.0,0.60276]
[1765403643147,0.320187,92687.0,92686.0,0.60276]
[1765403643451,0.60351,92687.0,92686.0,0.60276]
[1765403643646,0.319187,92687.0,92686.0,0.60276]
[1765403644059,0.616297,92687.0,92686.0,0.60276]
[1765403645759,0.60551,92687.0,92686.0,0.60276]
[1765403646146,0.60451,92687.0,92686.0,0.60276]
[1765403646347,0.60551,92687.0,92686.0,0.60276]
[1765403646552,0.60351,92687.0,92686.0,0.60276]
[1765403646753,0.60551,92687.0,92686.0,0.60276]
[1765403647251,0.003,92687.0,92686.0,0.60276]
[1765403648369,0.3608,92690.0,92689.0,0.60276]
[1765403648661,0.00016181,92696.0,92681.0,0.29433804]
[1765403648662,0.60251,92682.0,92681.0,0.29433804]
[1765403648862,0.60251,92682.0,92681.0,0.60286804]
[1765403649253,0.60251,92682.0,92681.0,0.00010804]
[1765403649457,0.77064,92682.0,92681.0,0.00010804]
[1765403650269,0.77164,92682.0,92681.0,0.30863804]
[1765403650450,0.77164,92682.0,92681.0,0.60286804]
[1765403650451,0.60351,92682.0,92681.0,0.60286804]
[1765403651072,0.96431,92682.0,92681.0,0.60286804]
[1765403652063,0.001,92682.0,92681.0,0.60286804]
[1765403652751,0.01094781,92696.0,92695.0,0.60276]
[1765403652960,0.31634781,92696.0,92695.0,0.60276]
[1765403653969,0.31734781,92696.0,92695.0,0.60276]
[1765403654468,0.61445781,92696.0,92695.0,0.60276]
[1765403654771,0.60251,92694.0,92693.0,0.0107861]
[1765403654976,0.60251,92694.0,92693.0,0.6135461]
[1765403655272,0.60251,92694.0,92693.0,0.60276]
[1765403660160,0.60251,92694.0,92692.0,0.0107864]
[1765403660161,0.00016181,92696.0,92695.0,0.57982]
[1765403662258,0.57058181,92696.0,92695.0,0.57982]
[1765403662459,0.93138181,92696.0,92695.0,0.57982]
[1765403666570,0.5812068,92689.0,92688.0,0.7615469]
[1765403666763,0.5812068,92689.0,92688.0,0.62259612]
[1765403667472,0.5812068,92689.0,92688.0,0.61180922]
[1765403667667,0.5812068,92689.0,92688.0,0.58082]
[1765403668070,0.5812068,92689.0,92688.0,0.58182]
[1765403669472,0.5812068,92689.0,92688.0,0.61365957]
[1765403669775,0.5812068,92689.0,92688.0,0.58182]
[1765403670272,0.5812068,92689.0,92688.0,0.002]
[1765403671775,0.5763576,92682.0,92681.0,0.00010804]
[1765403671967,0.5763576,92682.0,92665.0,0.58019916]
[1765403671968,0.5763595,92666.0,92665.0,0.58019916]
[1765403672167,0.9371595,92666.0,92665.0,0.61131055]
[1765403672779,0.9371595,92666.0,92665.0,0.58019916]
[1765403673778,0.9371595,92666.0,92665.0,0.00107916]
[1765403673969,1.2979595,92666.0,92665.0,0.00107916]
[1765403674169,0.5763605,92657.0,92656.0,0.00010087]
[1765403674477,0.5763624,92641.0,92640.0,0.58019945]
[1765403674665,0.9371624,92641.0,92640.0,0.61119676]
[1765403675077,0.56557,92627.0,92626.0,0.57912]
[1765403675290,0.92648986,92627.0,92626.0,0.61012178]
[1765403675880,0.92648986,92627.0,92626.0,0.57912]
[1765403676275,0.00011986,92627.0,92626.0,0.57912]
[1765403677781,0.00111986,92627.0,92626.0,0.95592]
[1765403677979,0.00211986,92627.0,92626.0,0.96992]
[1765403678281,0.3608,92646.0,92626.0,0.96992]
[1765403678473,0.00016192,92650.0,92640.0,0.5899125]
[1765403678678,0.34704801,92641.0,92640.0,0.5899125]
[1765403679072,0.00016192,92650.0,92649.0,0.5899114]
[1765403680377,0.00016192,92650.0,92649.0,0.5909114]
[1765403681280,0.00016192,92650.0,92649.0,0.5919114]
[1765403683874,0.00016192,92650.0,92649.0,0.9527114]
[1765403684073,0.3608,92658.0,92657.0,0.5899105]
[1765403685983,0.00016192,92667.0,92666.0,0.5899095]
[1765403687672,0.5763604,92658.0,92657.0,0.001]
[1765403687887,0.5763638,92629.0,92628.0,0.57912]
[1765403688075,0.2899647,92621.0,92620.0,0.57912]
[1765403688278,0.2899647,92621.0,92620.0,0.60903248]
[1765403688472,0.2899647,92621.0,92620.0,1.11203248]
[1765403688690,0.6507647,92621.0,92620.0,1.08212]
[1765403689081,0.5763653,92616.0,92615.0,0.29091974]
[1765403689279,0.5763653,92616.0,92615.0,0.79439974]
[1765403689889,0.5763653,92616.0,92615.0,0.00107974]
[1765403690083,0.5773653,92616.0,92615.0,0.01707974]
[1765403691178,0.5783653,92616.0,92615.0,0.01707974]
[1765403691589,0.5783653,92616.0,92615.0,0.00107974]
[1765403692289,0.5773653,92616.0,92615.0,0.00107974]
[1765403692587,0.5783653,92616.0,92615.0,0.00107974]
[1765403696189,0.56557,92601.0,92600.0,0.5899171]
[1765403696382,0.92637,92601.0,92600.0,0.62111458]
[1765403697490,0.92637,92601.0,92600.0,0.61131748]
[1765403697695,0.63997,92609.0,92608.0,0.0107962]
[1765403697900,0.92637,92609.0,92608.0,0.5899162]
[1765403699097,0.92637,92609.0,92608.0,0.57912]
[1765403700391,0.92637,92609.0,92592.0,0.20243638]
[1765403700594,0.54989,92607.0,92606.0,0.2834562]
[1765403700795,0.54989,92607.0,92606.0,0.31468569]
[1765403701297,0.54989,92607.0,92606.0,0.58510569]
[1765403701594,0.27917,92607.0,92606.0,0.57430949]
[1765403701798,0.63997,92609.0,92608.0,0.54308]
[1765403701997,0.91069,92609.0,92608.0,0.57431759]
[1765403702195,0.3608,92609.0,92608.0,0.57431759]
[1765403702588,0.00016192,92610.0,92609.0,0.5538761]
[1765403702791,0.00016192,92610.0,92609.0,0.58511369]
[1765403703500,0.55005192,92610.0,92609.0,0.58511369]
[1765403704195,0.27933192,92610.0,92609.0,0.58511369]
[1765403704699,0.27933192,92610.0,92609.0,0.58611369]
[1765403704889,0.00016192,92610.0,92609.0,0.58611369]
[1765403706690,0.72079192,92610.0,92609.0,0.57531759]
[1765403706894,0.72079192,92610.0,92609.0,0.001]
[1765403707696,0.54989,92599.0,92598.0,0.27266]
[1765403708006,0.54989,92599.0,92592.0,0.17383]
[1765403708007,0.54989,92593.0,92592.0,0.02860638]
[1765403708303,0.91069,92593.0,92592.0,0.03111238]
[1765403710102,0.91069,92593.0,92592.0,0.04191048]
[1765403710596,0.91069,92593.0,92592.0,0.04491048]
[1765403710797,0.921488,92593.0,92592.0,0.005]
[1765403711006,0.921488,92593.0,92592.0,0.0040592]
[1765403711198,0.5578601,92575.0,92574.0,0.02860638]
[1765403711389,0.9186601,92575.0,92573.0,0.02860638]
[1765403711702,0.54706,92572.0,92571.0,0.02860638]
[1765403711997,0.54706,92571.0,92570.0,0.02860638]
[1765403712401,0.54706,92569.0,92568.0,8.076e-05]
[1765403712825,0.54706,92569.0,92568.0,0.56131076]
[1765403713894,0.54806,92569.0,92568.0,0.57631076]
[1765403714094,0.54906,92569.0,92568.0,0.02908076]
[1765403714705,0.54906,92569.0,92568.0,0.31556076]
[1765403714893,0.54906,92569.0,92568.0,0.59031076]
[1765403715411,0.002,92569.0,92568.0,0.59031076]
[1765403715901,0.3608,92581.0,92580.0,0.5720295]
[1765403716101,0.84276,92599.0,92583.0,0.72321]
[1765403716307,0.3608,92599.0,92583.0,0.72321]
[1765403716512,0.3608,92599.0,92598.0,0.5720274]
[1765403716897,0.54706,92601.0,92600.0,0.0107971]
[1765403717105,0.54706,92597.0,92596.0,0.5720276]
[1765403717607,0.27628,92597.0,92596.0,0.5720276]
[1765403718205,0.27628,92597.0,92596.0,0.60066401]
[1765403718404,0.27728,92597.0,92596.0,0.60066401]
[1765403719307,0.001,92597.0,92596.0,0.5720276]
[1765403719511,0.001,92597.0,92596.0,0.60073198]
[1765403720012,0.0107971,92601.0,92596.0,0.60073198]
[1765403720013,0.2870771,92601.0,92600.0,0.5720271]
[1765403720319,0.2870771,92601.0,92600.0,0.7340071]
[1765403721010,0.0107967,92604.0,92603.0,0.5720268]
[1765403721206,0.00016201,92606.0,92605.0,0.56123]
[1765403722215,0.01095841,92606.0,92605.0,0.56123]
[1765403722406,0.00016201,92606.0,92605.0,0.56123]
[1765403722917,0.00016201,92606.0,92605.0,0.59112982]
[1765403723409,0.00016201,92606.0,92605.0,0.6198011]
[1765403724205,0.00016201,92606.0,92605.0,0.59112982]
[1765403728821,0.00016201,92606.0,92605.0,0.59106401]
[1765403733422,0.5598049,92620.0,92619.0,0.52986]
[1765403733723,0.9206049,92620.0,92619.0,0.52986]
[1765403735220,0.5598059,92611.0,92610.0,0.26100201]
[1765403735415,0.5598059,92611.0,92610.0,0.53002201]
[1765403736629,0.5608059,92611.0,92610.0,0.53002201]
[1765403737515,0.5598059,92611.0,92610.0,0.53002201]
[1765403737716,0.5608059,92611.0,92610.0,0.53002201]
[1765403739327,0.5618059,92611.0,92610.0,0.53002201]
[1765403741621,0.5618059,92611.0,92610.0,0.00016201]
[1765403744725,0.5618059,92611.0,92610.0,0.20016201]
[1765403745631,0.61986987,92611.0,92610.0,0.20016201]
[1765403746326,0.5618059,92611.0,92610.0,0.20016201]
[1765403747129,0.5618059,92611.0,92610.0,0.14129542]
[1765403749128,1.0648459,92611.0,92610.0,0.14129542]
[1765403752226,1.0648459,92611.0,92610.0,2e-08]
[1765403752427,1.17282501,92611.0,92610.0,2e-08]
[1765403752728,0.5598069,92602.0,92601.0,0.00016201]
[1765403752929,1.4236469,92602.0,92601.0,0.00016201]
[1765403753634,1.48186055,92602.0,92601.0,0.00016201]
[1765403754329,1.4236469,92602.0,92601.0,0.00016201]
[1765403755318,1.4246469,92602.0,92601.0,0.00016201]
[1765403756232,1.4256469,92602.0,92601.0,0.00016201]
[1765403761125,0.9226069,92602.0,92601.0,0.55809201]
[1765403761330,1.4256869,92602.0,92601.0,0.55809201]
[1765403761633,1.4256869,92602.0,92601.0,0.27528201]
[1765403761828,1.4256869,92602.0,92601.0,0.55809201]
[1765403764027,1.4256869,92602.0,92601.0,0.00016201]
[1765403765139,1.4256869,92602.0,92601.0,0.55809201]
[1765403765441,1.4256869,92602.0,92601.0,0.00016201]
[1765403766038,1.4256869,92602.0,92601.0,0.27528201]
[1765403767439,1.4256869,92602.0,92601.0,0.55809201]
[1765403769234,1.4256869,92602.0,92601.0,0.27528201]
[1765403769437,1.4256869,92602.0,92601.0,0.55809201]
[1765403771929,1.4256869,92602.0,92601.0,0.00016201]
[1765403772131,1.4256869,92602.0,92601.0,0.51844201]
[1765403772532,1.4256869,92602.0,92601.0,0.00016201]
[1765403778645,1.4256869,92602.0,92601.0,0.00010635]
[1765403781855,0.5313882,92591.0,92590.0,0.00108004]
[1765403782050,1.3953082,92591.0,92590.0,0.00108004]
[1765403783249,1.3953082,92591.0,92590.0,0.00308004]
[1765403784360,1.3953082,92591.0,92590.0,0.00508004]
[1765403784863,1.3953082,92591.0,92590.0,0.52336004]
[1765403785361,1.3953082,92591.0,92590.0,0.00508004]
[1765403786754,1.3953082,92591.0,92590.0,0.26947004]
[1765403786961,1.3953082,92591.0,92590.0,0.52336004]
[1765403787257,1.3953082,92591.0,92590.0,0.26547004]
[1765403787561,1.3953082,92591.0,92590.0,0.26847004]
[1765403788048,1.3953082,92591.0,92590.0,0.00208004]
[1765403788248,1.3953082,92591.0,92590.0,0.00408004]
[1765403788447,1.40617649,92591.0,92590.0,0.00408004]
[1765403789664,0.25881,92572.0,92571.0,0.50076]
[1765403789857,0.87984,92572.0,92571.0,0.50076]
[1765403790263,0.3608,92572.0,92571.0,0.50076]
[1765403790860,0.88084,92572.0,92571.0,0.51676]
[1765403791055,0.88184,92572.0,92571.0,0.53076]
[1765403792851,0.88184,92572.0,92571.0,0.51676]
[1765403793167,0.88184,92572.0,92571.0,0.52976]
[1765403793472,0.3628,92572.0,92571.0,0.52976]
[1765403793657,0.62161,92572.0,92571.0,0.52976]
[1765403796559,0.88184,92572.0,92571.0,0.52976]
[1765403796759,0.62161,92572.0,92571.0,0.52976]
[1765403797070,0.88184,92572.0,92571.0,0.52976]
[1765403799474,0.3628,92572.0,92571.0,0.52976]
[1765403800561,0.002,92572.0,92571.0,0.52976]
[1765403803476,0.52104,92572.0,92571.0,0.52976]
[1765403803873,0.002,92572.0,92571.0,0.52976]
[1765403805171,0.52104,92572.0,92571.0,0.52976]
[1765403810573,0.52104,92572.0,92571.0,0.5405605]
[1765403811671,0.002,92572.0,92571.0,0.5405605]
[1765403812587,0.88184,92572.0,92571.0,0.5405605]
[1765403813888,0.52104,92572.0,92571.0,0.5405605]
[1765403817896,0.26081,92572.0,92571.0,0.5405605]
[1765403818089,0.8926404,92572.0,92571.0,0.5405605]
[1765403820884,0.002,92572.0,92571.0,0.5405605]
[1765403821277,0.5057804,92572.0,92571.0,0.28036]
[1765403821589,0.5037808,92569.0,92568.0,8.076e-05]
[1765403821781,1.2253808,92569.0,92568.0,8.076e-05]
[1765403821973,1.21458,92569.0,92565.0,0.00108033]
[1765403822180,0.5037811,92566.0,92565.0,0.00108033]
[1765403823691,0.5047811,92566.0,92565.0,0.01608033]
[1765403824191,0.99706,92566.0,92565.0,0.53394033]
[1765403824378,0.49498,92566.0,92565.0,0.54594033]
[1765403824579,0.55325459,92566.0,92565.0,0.54594033]
[1765403824776,0.49498,92566.0,92565.0,0.54594033]
[1765403825783,0.49398,92566.0,92565.0,0.53094033]
[1765403825990,0.49498,92566.0,92565.0,0.54394033]
[1765403826586,0.49498,92566.0,92565.0,0.02608033]
[1765403826793,0.55325459,92566.0,92565.0,0.02608033]
[1765403827393,0.49498,92566.0,92565.0,0.02608033]
[1765403827780,0.49498,92566.0,92565.0,0.54394033]
[1765403828697,0.49498,92566.0,92565.0,0.02608033]
[1765403829999,0.49498,92566.0,92565.0,0.27583033]
[1765403832099,0.002,92566.0,92565.0,0.53516033]
[1765403836203,0.50569,92566.0,92565.0,0.27583033]
[1765403836405,0.50569,92566.0,92565.0,0.02608033]
[1765403837201,0.50569,92566.0,92565.0,0.52857033]
[1765403837392,0.25362,92566.0,92565.0,0.52857033]
[1765403837704,0.50569,92566.0,92565.0,0.52857033]
[1765403840417,0.50569,92566.0,92565.0,0.02608033]
[1765403853922,0.5159537,92544.0,92543.0,0.51048]
[1765403854119,0.8767537,92544.0,92543.0,0.51048]
[1765403854712,0.86595,92544.0,92543.0,0.24905]
[1765403854914,0.86595,92544.0,92543.0,0.51048]
[1765403855109,0.001,92544.0,92543.0,0.52348]
[1765403855320,0.002,92544.0,92543.0,0.53948]
[1765403857419,0.002,92544.0,92543.0,0.53648]
[1765403862120,0.50715,92544.0,92543.0,0.53648]
[1765403864327,0.25362,92544.0,92543.0,0.53648]
[1765403865120,0.50715,92544.0,92543.0,0.53648]
[1765403865827,0.002,92544.0,92543.0,0.53648]
[1765403867315,0.002,92544.0,92543.0,0.5472838]
[1765403872136,0.002,92544.0,92543.0,0.57624067]
[1765403872615,0.25362,92544.0,92543.0,0.57624067]
[1765403873035,0.002,92544.0,92543.0,0.57624067]
[1765403873635,0.50715,92544.0,92543.0,0.57624067]
[1765403873831,0.50715,92544.0,92543.0,0.53648]
[1765403874024,0.86795,92544.0,92543.0,0.53648]
[1765403874929,0.86695,92544.0,92543.0,0.52348]
[1765403875126,0.86795,92544.0,92543.0,0.53648]
[1765403876420,1.01654,92544.0,92543.0,0.53648]
[1765403876732,1.01654,92544.0,92543.0,0.52348]
[1765403877531,1.01554,92544.0,92543.0,0.013]
[1765403877724,1.01654,92544.0,92543.0,0.013]
[1765403878639,0.50304,92541.0,92540.0,0.48833062]
[1765403878832,0.50304,92541.0,92540.0,0.47631062]
[1765403880224,0.50304,92541.0,92540.0,0.00108062]
[1765403880431,0.50304,92541.0,92540.0,0.47631062]
[1765403880738,0.50404,92541.0,92540.0,0.48131062]
[1765403880939,0.50504,92541.0,92540.0,0.48131062]
[1765403881537,0.50504,92541.0,92540.0,0.00608062]
[1765403881836,0.50504,92541.0,92540.0,0.24311062]
[1765403882035,0.50504,92541.0,92540.0,0.00608062]
[1765403882229,0.50124,92525.0,92524.0,0.23703]
[1765403882430,0.50124,92525.0,92524.0,0.47523]
[1765403882431,0.86204,92525.0,92524.0,0.47523]
[1765403882630,0.5120468,92517.0,92516.0,0.47523]
[1765403882836,0.8728468,92517.0,92516.0,0.47523]
[1765403883133,0.8728468,92517.0,92515.0,0.00108091]
[1765403883134,0.50124,92516.0,92515.0,0.00108091]
[1765403883334,0.50124,92516.0,92515.0,0.23811091]
[1765403883838,0.50124,92516.0,92515.0,0.00108091]
[1765403884427,0.50124,92516.0,92502.0,0.02896517]
[1765403884627,0.64375,92502.0,92501.0,0.00012597]
[1765403884942,1.50763,92502.0,92501.0,0.00012597]
[1765403885635,0.6536499,92491.0,92490.0,0.0010812]
[1765403885940,0.8728499,92491.0,92490.0,0.4763112]
[1765403886239,1.0153599,92491.0,92490.0,0.0010812]
[1765403886424,1.0153599,92491.0,92490.0,0.2381112]
[1765403886741,1.01545177,92491.0,92490.0,0.2381112]
[1765403886935,1.01545177,92491.0,92490.0,0.4763112]
[1765403887138,0.87294177,92491.0,92490.0,0.4763112]
[1765403887836,1.01745177,92491.0,92490.0,0.4883112]
[1765403888039,0.86413187,92491.0,92490.0,0.4883112]
[1765403888337,0.94531187,92491.0,92490.0,0.4883112]
[1765403888949,0.86513187,92491.0,92490.0,0.4991212]
[1765403889128,0.86513187,92491.0,92490.0,0.4883112]
[1765403890532,1.01212187,92491.0,92490.0,0.0130812]
[1765403890930,0.50699,92473.0,92472.0,0.62967]
[1765403891142,0.87870835,92473.0,92472.0,0.62967]
[1765403891548,0.86789635,92473.0,92472.0,0.62967]
[1765403891733,0.36090635,92473.0,92472.0,0.62967]
[1765403892427,0.36190635,92473.0,92472.0,0.62967]
[1765403892930,0.86889635,92473.0,92472.0,0.62967]
[1765403893136,0.5178028,92466.0,92465.0,0.4925015]
[1765403893335,0.5178028,92466.0,92465.0,0.0010815]
[1765403893641,0.5178946,92466.0,92465.0,0.0010815]